[Event "SVK Amateur-ch 2020"]
[Site "Topolcany"]
[Date "2020.07.13"]
[Round "5.13"]
[White "Plasek, Zdenek"]
[Black "Babjak, Samuel"]
[Result "1-0"]
[ECO "A47"]
[WhiteElo "1933"]
[BlackElo "1487"]
[Annotator "ChessBase"]
[PlyCount "107"]
[EventDate "2020.07.10"]
[EventType "swiss"]
[EventCountry "SVK"]
[TimeControl "3600+30"]

1. d4 {[%emt 0:00:00]} e6 {[%emt 0:00:00]} 2. Bf4 {[%emt 0:00:15]} Nf6 {[%emt 0:00:01]} 3. e3 {[%emt 0:00:05]} b6 {[%emt 0:00:16]} 4. Nf3 {[%emt 0:00:45]} Bb7 {[%emt 0:00:18]} 5. Nbd2 {[%emt 0:00:16]} Be7 {[%emt 0:01:25]} 6. Bd3 {[%emt 0:00:48]} O-O {[%emt 0:02:42]} 7. O-O {[%emt 0:00:11]} Nh5 {[%emt 0:02:17]} 8. Qe2 {[%emt 0:00:42]} Nxf4 {[%emt 0:00:17]} 9. exf4 {[%emt 0:00:02]} d6 {[%emt 0:04:14]} 10. Rfe1 {[%emt 0:00:54]} Re8 {[%emt 0:01:27]} 11. Rad1 {[%emt 0:00:31]} Nd7 {[%emt 0:00:50]} 12. Ne4 {[%emt 0:01:29]} Nf6 {[%emt 0:01:35]} 13. c3 {[%emt 0:00:35]} d5 {[%emt 0:05:41]} 14. Nxf6+ {[%emt 0:07:19]} Bxf6 {[%emt 0:00:26]} 15. Bb5 {[%emt 0:05:29]} c6 {[%emt 0:03:28]} 16. Ba4 {[%emt 0:00:21]} Qc7 {[%emt 0:01:28]} 17. Ne5 {[%emt 0:00:12]} g6 {[%emt 0:04:02]} 18. Qd3 {[%emt 0:02:27]} Rec8 {[%emt 0:03:41]} 19. Qg3 {[%emt 0:02:37]} c5 {[%emt 0:02:16]} 20. Qe3 {[%emt 0:08:21]} cxd4 {[%emt 0:03:28]} 21. cxd4 {[%emt 0:02:27]} Ba6 {[%emt 0:03:16]} 22. Rc1 {[%emt 0:00:56]} Qd6 {[%emt 0:01:16]} 23. a3 {[%emt 0:10:10]} Rxc1 {[%emt 0:04:28]} 24. Rxc1 {[%emt 0:00:03]} Rc8 {[%emt 0:00:59]} 25. g3 {[%emt 0:00:56]} Rxc1+ {[%emt 0:04:12]} 26. Qxc1 {[%emt 0:00:02]} b5 {[%emt 0:01:13]} 27. Bb3 {[%emt 0:05:24]} b4 {[%emt 0:00:47]} 28. a4 {[%emt 0:05:02]} Qb6 {[%emt 0:01:39]} 29. Qc6 {[%emt 0:00:41]} Qxc6 {[%emt 0:00:28]} 30. Nxc6 {[%emt 0:00:02]} Bc4 {[%emt 0:01:30]} 31. Bd1 {[%emt 0:02:14]} Kf8 {[%emt 0:02:20]} 32. f3 {[%emt 0:00:20]} a5 {[%emt 0:00:58]} 33. Kf2 {[%emt 0:00:25]} Ke8 {[%emt 0:00:31]} 34. b3 {[%emt 0:01:23]} Ba6 {[%emt 0:01:18]} 35. Ke3 {[%emt 0:00:02]} Bd8 {[%emt 0:01:29]} 36. Nxd8 {[%emt 0:00:50]} Kxd8 {[%emt 0:00:06]} 37. g4 {[%emt 0:00:20]} h6 {[%emt 0:01:19]} 38. f5 {[%emt 0:02:57]} g5 {[%emt 0:00:57]} 39. f6 {[%emt 0:00:31]} Ke8 {[%emt 0:01:11]} 40. Bc2 {[%emt 0:00:36]} Kf8 {[%emt 0:00:30]} 41. f4 {[%emt 0:00:49]} Bf1 {[%emt 0:02:00]} 42. Kf3 {[%emt 0:00:09]} Ke8 {[%emt 0:02:37]} 43. Kf2 {[%emt 0:00:24]} Ba6 {[%emt 0:00:21]} 44. Kg3 {[%emt 0:00:01]} Kd7 {[%emt 0:01:15]} 45. h4 {[%emt 0:00:11]} gxf4+ {[%emt 0:00:57]} 46. Kxf4 {[%emt 0:00:01]} Be2 {[%emt 0:00:45]} 47. g5 {[%emt 0:00:19]} hxg5+ {[%emt 0:00:50]} 48. Kxg5 {[%emt 0:00:28]} e5 {[%emt 0:01:36]} 49. dxe5 {[%emt 0:00:11]} d4 {[%emt 0:00:14]} 50. Bf5+ {[%emt 0:00:27]} Kc7 {[%emt 0:01:33]} 51. e6 {[%emt 0:00:58]} fxe6 {[%emt 0:01:21]} 52. Bxe6 {[%emt 0:00:04]} d3 {[%emt 0:00:38]} 53. Bc4 {[%emt 0:00:03]} Kd8 {[%emt 0:00:28]} 54. h5 {[%emt 0:00:20]} 1-0

[Event "SVK Amateur-ch 2020"]
[Site "Topolcany"]
[Date "2020.07.12"]
[Round "5.14"]
[White "Panko, Radoslav"]
[Black "Bochnicka, Vladimir"]
[Result "1/2-1/2"]
[ECO "D00"]
[WhiteElo "2031"]
[BlackElo "2092"]
[Annotator "ChessBase"]
[PlyCount "100"]
[EventDate "2020.07.10"]
[EventType "swiss"]
[EventCountry "SVK"]
[SourceTitle "playchess.com"]
[Source "ChessBase"]
[SourceQuality "1"]
[TimeControl "3600+30"]

1. d4 {[%emt 0:00:00]} d5 {[%emt 0:00:00]} 2. Nc3 {[%emt 0:00:00]} Nf6 {[%emt 0:01:08]} 3. Bf4 {[%emt 0:00:00]} e6 {[%emt 0:00:06]} 4. Nb5 {[%emt 0:00:08]} Na6 {[%emt 0:00:06]} 5. e3 {[%emt 0:00:05]} c6 {[%emt 0:00:25]} 6. Nc3 {[%emt 0:00:02]} Nc7 {[%emt 0:00:26]} 7. Bd3 {[%emt 0:00:43]} Bd6 {[%emt 0:01:08]} 8. Nf3 {[%emt 0:00:59]} O-O {[%emt 0:01:17]} 9. Ne5 {[%emt 0:05:38]} c5 {[%emt 0:00:35]} 10. dxc5 {[%emt 0:01:08]} Bxc5 {[%emt 0:00:09]} 11. O-O {[%emt 0:01:00]} Qe7 {[%emt 0:07:32]} 12. Qf3 {[%emt 0:01:22]} Bd6 {[%emt 0:02:23]} 13. Qh3 {[%emt 0:14:20]} h6 {[%emt 0:05:00]} 14. Qh4 {[%emt 0:05:02]} Rd8 {[%emt 0:04:59]} 15. a4 {[%emt 0:13:19]} Nce8 {[%emt 0:03:44]} 16. Bg3 {[%emt 0:04:23]} Nd7 {[%emt 0:01:51]} 17. Qxe7 {[%emt 0:04:18]} Bxe7 {[%emt 0:00:07]} 18. e4 {[%emt 0:04:13]} Bf6 {[%emt 0:02:27]} 19. Nxd7 {[%emt 0:01:41]} Bxc3 {[%emt 0:01:13]} 20. bxc3 {[%emt 0:00:15]} Bxd7 {[%emt 0:01:02]} 21. exd5 {[%emt 0:00:24]} exd5 {[%emt 0:00:05]} 22. c4 {[%emt 0:05:03]} dxc4 {[%emt 0:05:37]} 23. Bxc4 {[%emt 0:00:02]} Rac8 {[%emt 0:00:11]} 24. Bd3 {[%emt 0:01:16]} Be6 {[%emt 0:00:41]} 25. Rfb1 {[%emt 0:00:57]} Bd5 {[%emt 0:01:26]} 26. Rb4 {[%emt 0:00:48]} Nf6 {[%emt 0:01:17]} 27. f3 {[%emt 0:00:35]} Rc5 {[%emt 0:10:35]} 28. Bf2 {[%emt 0:01:39]} Ra5 {[%emt 0:01:26]} 29. Rb5 {[%emt 0:00:09]} Ra6 {[%emt 0:03:19]} 30. Rxd5 {[%emt 0:02:08]} Nxd5 {[%emt 0:00:05]} 31. Bxa6 {[%emt 0:00:05]} bxa6 {[%emt 0:00:00]} 32. Rd1 {[%emt 0:01:33]} Rd7 {[%emt 0:00:22]} 33. c4 {[%emt 0:00:32]} Nb6 {[%emt 0:00:06]} 34. Rxd7 {[%emt 0:00:08]} Nxd7 {[%emt 0:00:01]} 35. Bxa7 {[%emt 0:00:12]} Ne5 {[%emt 0:00:30]} 36. c5 {[%emt 0:00:39]} Nc6 {[%emt 0:00:47]} 37. Bb6 {[%emt 0:00:07]} f5 {[%emt 0:01:20]} 38. Kf2 {[%emt 0:00:36]} Kf7 {[%emt 0:00:07]} 39. Ke3 {[%emt 0:00:44]} Ke6 {[%emt 0:00:08]} 40. g4 {[%emt 0:01:26]} fxg4 {[%emt 0:01:49]} 41. fxg4 {[%emt 0:00:04]} Kd5 {[%emt 0:00:55]} 42. Kf4 {[%emt 0:00:59]} Nd4 {[%emt 0:01:14]} 43. a5 {[%emt 0:00:39]} g6 {[%emt 0:01:15]} 44. h4 {[%emt 0:01:12]} Ne6+ {[%emt 0:05:40]} 45. Ke3 {[%emt 0:00:41]} Nf8 {[%emt 0:02:46]} 46. h5 {[%emt 0:00:44]} gxh5 {[%emt 0:03:46]} 47. gxh5 {[%emt 0:00:02]} Nd7 {[%emt 0:00:20]} 48. Kf4 {[%emt 0:00:17]} Nf6 {[%emt 0:00:17]} 49. c6 {[%emt 0:01:30]} Kxc6 {[%emt 0:00:28]} 50. Bd4 {[%emt 0:00:09]} Nxh5+ 1/2-1/2

[Event "SVK Amateur-ch 2020"]
[Site "Topolcany"]
[Date "2020.07.13"]
[Round "5.15"]
[White "Galdik, Stefan"]
[Black "Bakalar, Jan"]
[Result "1/2-1/2"]
[ECO "E60"]
[WhiteElo "1583"]
[BlackElo "1900"]
[Annotator "ChessBase"]
[PlyCount "115"]
[EventDate "2020.07.10"]
[EventType "swiss"]
[EventCountry "SVK"]
[TimeControl "3600+30"]

1. d4 {[%emt 0:00:00]} Nf6 {[%emt 0:00:20]} 2. c4 {[%emt 0:00:00]} d6 {[%emt 0:00:43]} 3. Nc3 {[%emt 0:00:00]} c6 {[%emt 0:00:17]} 4. Nf3 {[%emt 0:00:00]} Nbd7 {[%emt 0:00:16]} 5. e3 {[%emt 0:00:22]} g6 {[%emt 0:00:42]} 6. Be2 {[%emt 0:00:05]} Bg7 {[%emt 0:00:06]} 7. O-O {[%emt 0:00:05]} Qc7 {[%emt 0:00:30]} 8. b3 {[%emt 0:00:12]} O-O {[%emt 0:00:20]} 9. Bb2 {[%emt 0:00:02]} Re8 {[%emt 0:01:01]} 10. Rc1 {[%emt 0:00:02]} a6 {[%emt 0:00:23]} 11. h3 {[%emt 0:00:12]} b6 {[%emt 0:02:40]} 12. Qc2 {[%emt 0:00:10]} Bb7 {[%emt 0:00:45]} 13. Rfe1 {[%emt 0:05:53]} Rac8 {[%emt 0:00:15]} 14. Bd3 {[%emt 0:04:28]} Qb8 {[%emt 0:02:24]} 15. Qd1 {[%emt 0:01:59]} e5 {[%emt 0:01:22]} 16. dxe5 {[%emt 0:05:57]} dxe5 {[%emt 0:01:07]} 17. Ne4 {[%emt 0:05:26]} Nxe4 {[%emt 0:04:41]} 18. Bxe4 {[%emt 0:00:11]} Nc5 {[%emt 0:02:03]} 19. Bb1 {[%emt 0:02:56]} Rcd8 {[%emt 0:00:12]} 20. Qe2 {[%emt 0:01:05]} e4 {[%emt 0:02:47]} 21. Bxg7 {[%emt 0:01:24]} Kxg7 {[%emt 0:05:36]} 22. Qb2+ {[%emt 0:00:01]} f6 {[%emt 0:01:25]} 23. Nd4 {[%emt 0:01:25]} Nd3 {[%emt 0:00:47]} 24. Bxd3 {[%emt 0:00:30]} exd3 {[%emt 0:00:08]} 25. Nf3 {[%emt 0:04:33]} c5 {[%emt 0:01:58]} 26. Nd2 {[%emt 0:02:19]} Re5 {[%emt 0:00:26]} 27. Rcd1 {[%emt 0:00:55]} Qa8 {[%emt 0:04:18]} 28. f3 {[%emt 0:02:44]} Rg5 {[%emt 0:01:28]} 29. e4 {[%emt 0:01:31]} Qb8 {[%emt 0:00:44]} 30. Nf1 {[%emt 0:01:12]} Bc8 {[%emt 0:01:30]} 31. g4 {[%emt 0:03:27]} Qf4 {[%emt 0:00:26]} 32. Qf2 {[%emt 0:01:12]} b5 {[%emt 0:02:42]} 33. Qg3 {[%emt 0:02:52]} Qxg3+ {[%emt 0:00:50]} 34. Nxg3 {[%emt 0:00:02]} Re5 {[%emt 0:00:14]} 35. Re3 {[%emt 0:01:08]} bxc4 {[%emt 0:00:47]} 36. bxc4 {[%emt 0:00:05]} Rd4 {[%emt 0:01:24]} 37. Rexd3 {[%emt 0:00:45]} Rxd3 {[%emt 0:02:40]} 38. Rxd3 {[%emt 0:00:03]} Re7 {[%emt 0:00:09]} 39. Rd5 {[%emt 0:04:37]} Rc7 {[%emt 0:00:32]} 40. Rd6 {[%emt 0:00:48]} Kf7 {[%emt 0:00:19]} 41. f4 {[%emt 0:00:46]} Be6 {[%emt 0:00:41]} 42. Rxa6 {[%emt 0:00:41]} Bxc4 {[%emt 0:00:06]} 43. Ra4 {[%emt 0:03:32]} Bd3 {[%emt 0:01:25]} 44. Ra3 {[%emt 0:01:57]} c4 {[%emt 0:00:22]} 45. Rc3 {[%emt 0:00:02]} Rb7 {[%emt 0:00:44]} 46. Rc1 {[%emt 0:03:01]} Ra7 {[%emt 0:02:22]} 47. Ra1 {[%emt 0:00:21]} c3 {[%emt 0:02:38]} 48. Kf2 {[%emt 0:00:36]} c2 {[%emt 0:05:39]} 49. Ke3 {[%emt 0:00:21]} Rxa2 {[%emt 0:00:34]} 50. Rc1 {[%emt 0:01:46]} Bb5 {[%emt 0:02:45]} 51. Kd2 {[%emt 0:00:37]} Ra3 {[%emt 0:01:19]} 52. Ne2 {[%emt 0:00:26]} Rxh3 {[%emt 0:00:58]} 53. Rxc2 {[%emt 0:00:52]} Rh2 {[%emt 0:00:19]} 54. Ke3 {[%emt 0:01:28]} Rh3+ {[%emt 0:01:14]} 55. Kf2 {[%emt 0:01:35]} Rh2+ {[%emt 0:00:58]} 56. Kf3 {[%emt 0:00:34]} Bd3 {[%emt 0:02:24]} 57. Rd2 {[%emt 0:01:26]} Rh3+ {[%emt 0:00:55]} 58. Kg2 {[%emt 0:01:35]} 1/2-1/2

[Event "SVK Amateur-ch 2020"]
[Site "Topolcany"]
[Date "2020.07.12"]
[Round "5.16"]
[White "Matis, Tibor"]
[Black "Pniaczek, Marek"]
[Result "0-1"]
[ECO "B44"]
[WhiteElo "1939"]
[BlackElo "2102"]
[Annotator "ChessBase"]
[PlyCount "56"]
[EventDate "2020.07.10"]
[EventType "swiss"]
[EventCountry "SVK"]
[SourceTitle "playchess.com"]
[Source "ChessBase"]
[SourceQuality "1"]
[TimeControl "3600+30"]

1. e4 {[%emt 0:00:52]} c5 {[%emt 0:00:00]} 2. Nf3 {[%emt 0:00:16]} e6 {[%emt 0:00:00]} 3. d4 {[%emt 0:00:10]} cxd4 {[%emt 0:00:00]} 4. Nxd4 {[%emt 0:00:09]} Nc6 {[%emt 0:00:00]} 5. c4 {[%emt 0:00:24]} Nf6 {[%emt 0:00:06]} 6. Nc3 {[%emt 0:00:08]} Bb4 {[%emt 0:01:01]} 7. Nxc6 {[%emt 0:01:43]} bxc6 {[%emt 0:03:31]} 8. e5 {[%emt 0:05:45]} Ne4 {[%emt 0:03:07]} 9. Bd2 {[%emt 0:00:32]} Bxc3 {[%emt 0:03:10]} 10. Bxc3 {[%emt 0:00:19]} Nxc3 {[%emt 0:00:34]} 11. bxc3 {[%emt 0:00:06]} Qa5 {[%emt 0:00:26]} 12. Qd4 {[%emt 0:01:19]} c5 {[%emt 0:03:12]} 13. Qd2 {[%emt 0:04:00]} Bb7 {[%emt 0:02:07]} 14. f3 {[%emt 0:00:56]} Bc6 {[%emt 0:02:06]} 15. Bd3 {[%emt 0:00:34]} Rb8 {[%emt 0:01:53]} 16. O-O {[%emt 0:00:32]} O-O {[%emt 0:00:08]} 17. Rab1 {[%emt 0:00:17]} Rbd8 {[%emt 0:14:20]} 18. Rfd1 {[%emt 0:01:24]} f5 {[%emt 0:04:37]} 19. exf6 {[%emt 0:06:02]} Rxf6 {[%emt 0:00:08]} 20. Qc2 {[%emt 0:00:05]} Ba4 {[%emt 0:05:43]} 21. Bxh7+ {[%emt 0:02:42]} Kf7 {[%emt 0:02:05]} 22. Qe4 {[%emt 0:07:35]} Bxd1 {[%emt 0:00:40]} 23. Rxd1 {[%emt 0:00:19]} Qxc3 {[%emt 0:01:51]} 24. h4 {[%emt 0:01:38]} g6 {[%emt 0:02:12]} 25. h5 {[%emt 0:00:30]} gxh5 {[%emt 0:00:25]} 26. Kh1 {[%emt 0:06:37]} Kg7 {[%emt 0:02:00]} 27. Qb1 {[%emt 0:03:08]} Qxc4 {[%emt 0:01:42]} 28. Qb2 {[%emt 0:01:52]} Qh4+ {[%emt 0:00:17]} 0-1

[Event "SVK Amateur-ch 2020"]
[Site "Topolcany"]
[Date "2020.07.13"]
[Round "5.16"]
[White "Wozniak Marcin"]
[Black "Hlavac, Tomas"]
[Result "1/2-1/2"]
[ECO "C10"]
[WhiteElo "1864"]
[BlackElo "1349"]
[Annotator "NA RC"]
[PlyCount "33"]
[EventDate "2020.07.10"]
[EventType "swiss"]
[EventCountry "SVK"]
[TimeControl "3600+30"]

1. e4 {[%emt 0:00:00]} e6 {[%emt 0:00:00]} 2. d4 {[%emt 0:00:20]} d5 {[%emt 0:00:00]} 3. Nd2 {[%emt 0:01:01]} dxe4 {[%emt 0:01:42]} 4. Nxe4 {[%emt 0:00:25]} Be7 {[%emt 0:00:17]} 5. Nf3 {[%emt 0:03:33]} Nf6 {[%emt 0:00:52]} 6. Nxf6+ {[%emt 0:03:33]} Bxf6 {[%emt 0:00:09]} 7. Bd3 {[%emt 0:02:11]} Nc6 {[%emt 0:00:50]} 8. c3 {[%emt 0:06:52]} b6 {[%emt 0:04:28]} 9. Be4 {[%emt 0:05:45]} Bb7 {[%emt 0:03:43]} 10. Qa4 {[%emt 0:03:11]} Qd7 {[%emt 0:02:26]} 11. Ne5 {[%emt 0:04:47]} Bxe5 {[%emt 0:01:30]} 12. dxe5 {[%emt 0:00:07]} O-O-O {[%emt 0:03:01]} 13. Bg5 {[%emt 0:04:56]} Ne7 {[%emt 0:08:07]} 14. Bxb7+ {[%emt 0:01:54]} Kxb7 {[%emt 0:00:31]} 15. Qe4+ {[%emt 0:00:23]} Kb8 {[%emt 0:00:44]} 16. O-O {[%emt 0:08:54]} h6 {[%emt 0:00:44]} 17. Bxe7 {[%emt 0:00:25]} 1/2-1/2

[Event "SVK Amateur-ch 2020"]
[Site "Topolcany"]
[Date "2020.07.12"]
[Round "5.17"]
[White "Suder, Jakub"]
[Black "Musial, Tomasz"]
[Result "1-0"]
[ECO "E20"]
[WhiteElo "2095"]
[BlackElo "1946"]
[Annotator "ChessBase"]
[PlyCount "113"]
[EventDate "2020.07.10"]
[EventType "swiss"]
[EventCountry "SVK"]
[SourceTitle "playchess.com"]
[Source "ChessBase"]
[SourceQuality "1"]
[TimeControl "3600+30"]

1. d4 {[%emt 0:00:00]} Nf6 {[%emt 0:00:00]} 2. c4 {[%emt 0:00:00]} e6 {[%emt 0:00:00]} 3. Nc3 {[%emt 0:00:00]} Bb4 {[%emt 0:00:15]} 4. f3 {[%emt 0:00:00]} c5 {[%emt 0:01:15]} 5. d5 {[%emt 0:00:00]} d6 {[%emt 0:01:30]} 6. e4 {[%emt 0:00:08]} O-O {[%emt 0:01:03]} 7. Nge2 {[%emt 0:00:11]} a6 {[%emt 0:04:32]} 8. Nf4 {[%emt 0:01:40]} exd5 {[%emt 0:07:13]} 9. cxd5 {[%emt 0:00:59]} Nbd7 {[%emt 0:00:55]} 10. Be2 {[%emt 0:04:22]} b5 {[%emt 0:02:03]} 11. a4 {[%emt 0:03:00]} Rb8 {[%emt 0:00:36]} 12. Bd2 {[%emt 0:03:17]} c4 {[%emt 0:01:50]} 13. g4 {[%emt 0:04:12]} Nc5 {[%emt 0:05:08]} 14. axb5 {[%emt 0:03:44]} axb5 {[%emt 0:00:55]} 15. Be3 {[%emt 0:03:00]} Re8 {[%emt 0:07:08]} 16. O-O {[%emt 0:03:17]} Nb3 {[%emt 0:02:05]} 17. Ra2 {[%emt 0:03:28]} Bc5 {[%emt 0:01:15]} 18. Bxc5 {[%emt 0:00:11]} Nxc5 {[%emt 0:00:13]} 19. Kh1 {[%emt 0:01:42]} Nfd7 {[%emt 0:00:28]} 20. Qe1 {[%emt 0:04:30]} Ne5 {[%emt 0:01:22]} 21. Qg3 {[%emt 0:00:57]} b4 {[%emt 0:04:12]} 22. Nb1 {[%emt 0:03:18]} Bd7 {[%emt 0:02:07]} 23. g5 {[%emt 0:01:46]} g6 {[%emt 0:05:38]} 24. h4 {[%emt 0:01:21]} b3 {[%emt 0:00:45]} 25. Ra1 {[%emt 0:02:23]} Na4 {[%emt 0:00:39]} 26. Rxa4 {[%emt 0:00:42]} Bxa4 {[%emt 0:00:09]} 27. Ng2 {[%emt 0:03:14]} Qb6 {[%emt 0:04:51]} 28. Nc3 {[%emt 0:00:24]} Bd7 {[%emt 0:01:04]} 29. Rd1 {[%emt 0:02:16]} Nd3 {[%emt 0:02:59]} 30. Bxd3 {[%emt 0:00:21]} cxd3 {[%emt 0:00:04]} 31. Rxd3 {[%emt 0:00:50]} Ra8 {[%emt 0:00:05]} 32. Rd1 {[%emt 0:01:42]} Ra2 {[%emt 0:03:09]} 33. Rb1 {[%emt 0:02:35]} Rc8 {[%emt 0:02:38]} 34. Qe1 {[%emt 0:02:41]} Ra7 {[%emt 0:03:54]} 35. h5 {[%emt 0:00:32]} Qd8 {[%emt 0:01:17]} 36. Qg3 {[%emt 0:01:29]} Qe7 {[%emt 0:00:21]} 37. Qf4 {[%emt 0:01:00]} Rca8 {[%emt 0:00:40]} 38. Qd2 {[%emt 0:04:45]} Ra1 {[%emt 0:00:34]} 39. Rxa1 {[%emt 0:00:12]} Rxa1+ {[%emt 0:00:05]} 40. Kh2 {[%emt 0:00:06]} Rf1 {[%emt 0:02:04]} 41. Qe3 {[%emt 0:01:31]} gxh5 {[%emt 0:00:34]} 42. f4 {[%emt 0:00:45]} Ra1 {[%emt 0:01:03]} 43. e5 {[%emt 0:01:28]} dxe5 {[%emt 0:01:20]} 44. Ne4 {[%emt 0:01:31]} Bg4 {[%emt 0:00:43]} 45. Nf6+ {[%emt 0:00:42]} Kg7 {[%emt 0:00:19]} 46. Qe4 {[%emt 0:00:52]} Kf8 {[%emt 0:00:57]} 47. Qxh7 {[%emt 0:00:27]} Qa7 {[%emt 0:00:40]} 48. Qh8+ {[%emt 0:00:13]} Ke7 {[%emt 0:00:06]} 49. Qe8+ {[%emt 0:00:11]} Kd6 {[%emt 0:00:05]} 50. Qc6+ {[%emt 0:00:31]} Ke7 {[%emt 0:00:07]} 51. d6+ {[%emt 0:00:47]} Ke6 {[%emt 0:00:22]} 52. Qd5+ {[%emt 0:01:10]} Kf5 {[%emt 0:00:09]} 53. Qxe5+ {[%emt 0:01:14]} Kg6 {[%emt 0:00:08]} 54. Qe4+ {[%emt 0:00:32]} Bf5 {[%emt 0:00:14]} 55. Nh4+ {[%emt 0:00:06]} Kg7 {[%emt 0:00:07]} 56. Nxf5+ {[%emt 0:00:04]} Kf8 {[%emt 0:00:08]} 57. Qe8# {[%emt 0:00:08]} 1-0

[Event "SVK Amateur-ch 2020"]
[Site "Topolcany"]
[Date "2020.07.13"]
[Round "5.17"]
[White "Kubrican, Anton"]
[Black "Cavalcante, Pietro Lukas B Souza"]
[Result "1-0"]
[ECO "A07"]
[WhiteElo "1861"]
[BlackElo "1619"]
[Annotator "NA RC"]
[PlyCount "59"]
[EventDate "2020.07.10"]
[EventType "swiss"]
[EventCountry "SVK"]
[TimeControl "3600+30"]

1. g3 {[%emt 0:00:00]} d5 {[%emt 0:00:00]} 2. Bg2 {[%emt 0:00:00]} g6 {[%emt 0:00:00]} 3. d3 {[%emt 0:00:00]} Bg7 {[%emt 0:00:00]} 4. Nc3 {[%emt 0:00:00]} c6 {[%emt 0:01:16]} 5. e4 {[%emt 0:00:01]} dxe4 {[%emt 0:01:48]} 6. Nxe4 {[%emt 0:00:18]} Nd7 {[%emt 0:00:49]} 7. Nf3 {[%emt 0:00:38]} Ngf6 {[%emt 0:00:13]} 8. O-O {[%emt 0:00:55]} O-O {[%emt 0:00:08]} 9. c3 {[%emt 0:00:23]} Qb6 {[%emt 0:01:32]} 10. Qc2 {[%emt 0:01:14]} Nxe4 {[%emt 0:01:33]} 11. dxe4 {[%emt 0:00:13]} a5 {[%emt 0:04:12]} 12. Be3 {[%emt 0:00:38]} Qa6 {[%emt 0:00:44]} 13. Rfd1 {[%emt 0:00:50]} a4 {[%emt 0:00:35]} 14. Rd2 {[%emt 0:03:57]} Nb6 {[%emt 0:04:33]} 15. Bd4 {[%emt 0:10:05]} Bh6 {[%emt 0:01:43]} 16. Rdd1 {[%emt 0:00:36]} Be6 {[%emt 0:00:59]} 17. Bc5 {[%emt 0:02:17]} Rfe8 {[%emt 0:06:04]} 18. h3 {[%emt 0:01:36]} Nd7 {[%emt 0:01:48]} 19. Bf1 {[%emt 0:02:36]} Qa5 {[%emt 0:01:03]} 20. Ba3 {[%emt 0:01:35]} c5 {[%emt 0:00:45]} 21. b4 {[%emt 0:02:38]} Qc7 {[%emt 0:06:36]} 22. bxc5 {[%emt 0:00:38]} Nxc5 {[%emt 0:07:00]} 23. Nd4 {[%emt 0:01:52]} Bc8 {[%emt 0:00:20]} 24. Bb5 {[%emt 0:02:23]} Rd8 {[%emt 0:01:12]} 25. Bf1 {[%emt 0:02:40]} b6 {[%emt 0:01:07]} 26. Nb5 {[%emt 0:00:42]} Rxd1 {[%emt 0:03:14]} 27. Nxc7 {[%emt 0:00:24]} Rxa1 {[%emt 0:00:25]} 28. Nxa8 {[%emt 0:00:54]} Bxh3 {[%emt 0:05:40]} 29. Bxc5 {[%emt 0:00:37]} Bxf1 {[%emt 0:01:02]} 30. Qb2 {[%emt 0:02:32]} 1-0

[Event "SVK Amateur-ch 2020"]
[Site "Topolcany"]
[Date "2020.07.12"]
[Round "5.21"]
[White "Meszarosova, Eva"]
[Black "Skreno, Vladimir"]
[Result "1/2-1/2"]
[ECO "B32"]
[WhiteElo "1976"]
[BlackElo "2119"]
[Annotator "ChessBase"]
[PlyCount "87"]
[EventDate "2020.07.10"]
[EventType "swiss"]
[EventCountry "SVK"]
[SourceTitle "playchess.com"]
[Source "ChessBase"]
[SourceQuality "1"]
[TimeControl "3600+30"]

1. e4 {[%emt 0:00:00]} c5 {[%emt 0:00:00]} 2. Nf3 {[%emt 0:00:00]} Nc6 {[%emt 0:00:00]} 3. d4 {[%emt 0:00:00]} cxd4 {[%emt 0:00:00]} 4. Nxd4 {[%emt 0:00:04]} Qc7 {[%emt 0:00:30]} 5. g3 {[%emt 0:01:52]} Qe5 {[%emt 0:01:09]} 6. Be3 {[%emt 0:05:28]} Qxe4 {[%emt 0:01:11]} 7. Qf3 {[%emt 0:00:13]} Qxf3 {[%emt 0:01:03]} 8. Nxf3 {[%emt 0:01:07]} e6 {[%emt 0:00:51]} 9. c3 {[%emt 0:01:24]} Nf6 {[%emt 0:00:30]} 10. Bg2 {[%emt 0:03:23]} d5 {[%emt 0:01:00]} 11. h3 {[%emt 0:01:59]} Be7 {[%emt 0:00:17]} 12. Nbd2 {[%emt 0:00:56]} O-O {[%emt 0:00:31]} 13. O-O {[%emt 0:00:12]} b6 {[%emt 0:02:50]} 14. Nd4 {[%emt 0:03:15]} Nxd4 {[%emt 0:01:29]} 15. Bxd4 {[%emt 0:00:02]} Ba6 {[%emt 0:00:26]} 16. Rfe1 {[%emt 0:00:20]} Rad8 {[%emt 0:07:41]} 17. Kh2 {[%emt 0:06:45]} Rfe8 {[%emt 0:04:43]} 18. f4 {[%emt 0:02:11]} g6 {[%emt 0:00:29]} 19. a4 {[%emt 0:02:15]} Nd7 {[%emt 0:06:57]} 20. a5 {[%emt 0:04:40]} Bb5 {[%emt 0:01:09]} 21. axb6 {[%emt 0:02:46]} axb6 {[%emt 0:00:02]} 22. Ra7 {[%emt 0:00:57]} Bc5 {[%emt 0:08:29]} 23. Nb3 {[%emt 0:00:59]} Bc4 {[%emt 0:03:38]} 24. Nxc5 {[%emt 0:03:50]} Nxc5 {[%emt 0:01:27]} 25. b4 {[%emt 0:01:25]} Nd3 {[%emt 0:02:52]} 26. Rea1 {[%emt 0:01:32]} b5 {[%emt 0:00:07]} 27. Bf6 {[%emt 0:00:49]} Rc8 {[%emt 0:00:39]} 28. Bf1 {[%emt 0:02:02]} h6 {[%emt 0:07:13]} 29. Rb7 {[%emt 0:02:30]} Ra8 {[%emt 0:00:12]} 30. Raa7 {[%emt 0:00:38]} Rxa7 {[%emt 0:00:06]} 31. Rxa7 {[%emt 0:00:07]} Rc8 {[%emt 0:01:00]} 32. Be2 {[%emt 0:01:31]} Kf8 {[%emt 0:03:15]} 33. Bxd3 {[%emt 0:02:39]} Bxd3 {[%emt 0:00:02]} 34. Kg1 {[%emt 0:00:51]} g5 {[%emt 0:07:58]} 35. fxg5 {[%emt 0:02:33]} hxg5 {[%emt 0:00:01]} 36. Kf2 {[%emt 0:00:21]} Kg8 {[%emt 0:02:19]} 37. Be5 {[%emt 0:01:49]} Rf8 {[%emt 0:00:36]} 38. Bd6 {[%emt 0:00:14]} Rd8 {[%emt 0:00:10]} 39. Be5 {[%emt 0:00:21]} Rc8 {[%emt 0:02:19]} 40. h4 {[%emt 0:01:05]} gxh4 {[%emt 0:00:12]} 41. gxh4 {[%emt 0:00:04]} Rf8 {[%emt 0:00:58]} 42. Bd6 {[%emt 0:00:27]} Rd8 {[%emt 0:00:45]} 43. Be5 {[%emt 0:00:24]} Rf8 {[%emt 0:02:42]} 44. Bd6 {[%emt 0:00:13]} 1/2-1/2